fUST/lending_fUST_20250723
["ID","MTS","AMOUNT","RATE_DAILY","PERIOD"]
[374189358,1753242639983,-465.06847599,0.00021917,2]
[374189359,1753242639992,-460.0,0.00021917,2]
[374189361,1753242640002,-464.73495248,0.00021917,2]
[374189362,1753242640011,-460.0,0.00021917,2]
[374189364,1753242640020,-1578.69,0.00021917,2]
[374189366,1753242640029,-460.0,0.00021917,2]
[374189367,1753242640039,-460.0,0.00021917,2]
[374189368,1753242640049,-463.21536588,0.00021917,2]
[374189370,1753242640058,-460.0,0.00021917,2]
[374189371,1753242640067,-460.0,0.00021917,2]
[374189373,1753242640076,-460.0,0.00021917,2]
[374189374,1753242640085,-420.41015028,0.00021917,2]
[374189375,1753242640095,-463.37390298,0.00021917,2]
[374189376,1753242640104,-460.0,0.00021917,2]
[374189377,1753242640113,-460.0,0.00021917,2]
[374189378,1753242640122,-460.0,0.00021917,2]
[374189379,1753242640132,-460.0,0.00021917,2]
[374189380,1753242640140,-460.0,0.00021917,2]
[374189382,1753242640149,-460.0,0.00021917,2]
[374189383,1753242640161,-460.0,0.00021917,2]
[374189384,1753242640171,-1976.78,0.00021917,2]
[374189385,1753242640181,-500.0,0.00021917,2]
[374189386,1753242640190,-460.0,0.00021917,2]
[374189387,1753242640199,-151.0,0.00021917,2]
[374189388,1753242640216,-2354.1,0.00021917,2]
[374189389,1753242640234,-460.0,0.00021917,2]
[374189390,1753242640251,-460.0,0.00021917,2]
[374189391,1753242640261,-460.0,0.00021917,2]
[374189392,1753242640272,-460.0,0.00021917,2]
[374189393,1753242640281,-462.89450669,0.00021917,2]
[374189394,1753242640291,-500.0,0.00021917,2]
[374189395,1753242640300,-500.0,0.00021917,2]
[374189396,1753242640309,-460.0,0.00021917,2]
[374189397,1753242640319,-460.0,0.00021917,2]
[374189398,1753242640328,-460.0,0.00021917,2]
[374189399,1753242640337,-460.0,0.00021917,2]
[374189400,1753242640346,-460.0,0.00021917,2]
[374189401,1753242640355,-460.0,0.00021917,2]
[374189402,1753242640365,-460.0,0.00021917,2]
[374189403,1753242640374,-460.0,0.00021917,2]
[374189404,1753242640384,-463.34193912,0.00021917,2]
[374189406,1753242640393,-460.0,0.00021917,2]
[374189408,1753242640403,-460.0,0.00021917,2]
[374189410,1753242640412,-569.67424745,0.00021917,2]
[374189412,1753242640421,-460.0,0.00021917,2]
[374189414,1753242640431,-460.0,0.00021917,2]
[374189416,1753242640441,-460.0,0.00021917,2]
[374189418,1753242640450,-460.0,0.00021917,2]
[374189420,1753242640460,-460.0,0.00021917,2]
[374189422,1753242640470,-460.0,0.00021917,2]
[374189424,1753242640479,-460.0,0.00021917,2]
[374189426,1753242640489,-460.0,0.00021917,2]
[374189428,1753242640498,-460.0,0.00021917,2]
[374189430,1753242640508,-460.0,0.00021917,2]
[374189432,1753242640518,-460.0,0.00021917,2]
[374189434,1753242640528,-468.19998978,0.00021917,2]
[374189436,1753242640538,-460.0,0.00021917,2]
[374189438,1753242640547,-460.0,0.00021917,2]
[374189440,1753242640556,-460.0,0.00021917,2]
[374189442,1753242640565,-460.0,0.00021917,2]
[374189444,1753242640574,-460.0,0.00021917,2]
[374189446,1753242640583,-460.0,0.00021917,2]
[374189448,1753242640592,-1588.68,0.00021917,2]
[374189450,1753242640601,-1190.5,0.00021917,2]
[374189451,1753242640610,-460.0,0.00021917,2]
[374189453,1753242640619,-527.31591432,0.00021917,2]
[374189455,1753242640628,-604.92468495,0.00021917,2]
[374189458,1753242640637,-463.15464199,0.00021917,2]
[374189459,1753242640647,-460.0,0.00021917,2]
[374189462,1753242640656,-463.13697685,0.00021917,2]
[374189464,1753242640665,-460.0,0.00021917,2]
[374189466,1753242640675,-460.0,0.00021917,2]
[374189468,1753242640684,-460.0,0.00021917,2]
[374189470,1753242640694,-460.0,0.00021917,2]
[374189472,1753242640703,-460.0,0.00021917,2]
[374189474,1753242640712,-460.0,0.00021917,2]
[374189476,1753242640721,-460.0,0.00021917,2]
[374189477,1753242640730,-460.0,0.00021917,2]
[374189479,1753242640739,-762.11,0.00021917,2]
[374189481,1753242640748,-461.80722809,0.00021917,2]
[374189483,1753242640758,-460.0,0.00021917,2]
[374189485,1753242640768,-460.0,0.00021917,2]
[374189487,1753242640777,-460.0,0.00021917,2]
[374189489,1753242640786,-460.0,0.00021917,2]
[374189492,1753242640796,-466.0748198,0.00021917,2]
[374189494,1753242640805,-460.0,0.00021917,2]
[374189497,1753242640815,-460.0,0.00021917,2]
[374189499,1753242640824,-461.47717179,0.00021917,2]
[374189502,1753242640833,-1352.44,0.00021917,2]
[374189505,1753242640844,-460.0,0.00021917,2]
[374189508,1753242640854,-460.0,0.00021917,2]
[374189510,1753242640863,-462.84465979,0.00021917,2]
[374189512,1753242640872,-921.04,0.00021917,2]
[374189514,1753242640881,-460.0,0.00021917,2]
[374189516,1753242640891,-151.28823923,0.00021917,2]
[374189518,1753242640900,-460.0,0.00021917,2]
[374189519,1753242640909,-460.0,0.00021917,2]
[374189521,1753242640919,-460.0,0.00021917,2]
[374189523,1753242640928,-460.0,0.00021917,2]
[374189525,1753242640937,-460.0,0.00021917,2]
[374189527,1753242640947,-460.0,0.00021917,2]
[374189529,1753242640956,-460.0,0.00021917,2]
[374189531,1753242640965,-1115.04,0.00021917,2]
[374189533,1753242640975,-460.0,0.00021917,2]
[374189535,1753242640984,-151.0,0.00021917,2]
[374189537,1753242640993,-460.0,0.00021917,2]
[374189539,1753242641002,-460.0,0.00021917,2]
[374189541,1753242641011,-460.0,0.00021917,2]
[374189543,1753242641021,-914.59,0.00021917,2]
[374189545,1753242641030,-460.0,0.00021917,2]
[374189547,1753242641040,-460.0,0.00021917,2]
[374189549,1753242641049,-460.0,0.00021917,2]
[374189551,1753242641058,-762.16,0.00021917,2]
[374189552,1753242641068,-460.0,0.00021917,2]
[374189554,1753242641077,-460.0,0.00021917,2]
[374189556,1753242641086,-460.0,0.00021917,2]
[374189558,1753242641098,-460.0,0.00021917,2]
[374189568,1753242641107,-460.0,0.00021917,2]
[374189570,1753242641199,-571.1,0.00021917,2]
[374189572,1753242641209,-460.0,0.00021917,2]
[374189574,1753242641218,-463.38656064,0.00021917,2]
[374189576,1753242641227,-460.0,0.00021917,2]
[374189578,1753242641238,-461.69938459,0.00021917,2]
[374189580,1753242641247,-460.0,0.00021917,2]
[374189582,1753242641256,-1519.69,0.00021917,2]
[374189584,1753242641265,-460.0,0.00021917,2]
[374189586,1753242641274,-460.0,0.00021917,2]
[374189588,1753242641283,-462.5272426,0.00021917,2]
[374189589,1753242641292,-460.0,0.00021917,2]
[374189591,1753242641302,-460.0,0.00021917,2]
[374189593,1753242641312,-461.76972251,0.00021917,2]
[374189595,1753242641321,-460.0,0.00021917,2]
[374189597,1753242641330,-460.0,0.00021917,2]
[374189599,1753242641339,-460.0,0.00021917,2]
[374189601,1753242641349,-460.0,0.00021917,2]
[374189603,1753242641358,-460.0,0.00021917,2]
[374189605,1753242641367,-1165.28,0.00021917,2]
[374189607,1753242641377,-460.0,0.00021917,2]
[374189609,1753242641387,-397.98577157,0.00021917,2]
[374189612,1753242641397,-463.52804401,0.00021917,2]
[374189613,1753242641407,-465.61257395,0.00021917,2]
[374189615,1753242641416,-460.7391648,0.00021917,2]
[374189617,1753242641425,-460.0,0.00021917,2]
[374189619,1753242641434,-460.0,0.00021917,2]
[374189621,1753242641443,-500.0,0.00021917,2]
[374189623,1753242641452,-468.26286055,0.00021917,2]
[374189625,1753242641461,-460.0,0.00021917,2]
[374189627,1753242641471,-233.32997682,0.00021917,2]
[374189629,1753242641480,-460.0,0.00021917,2]
[374189631,1753242641490,-460.0,0.00021917,2]
[374189633,1753242641500,-462.95057392,0.00021917,2]
[374189635,1753242641510,-460.96336265,0.00021917,2]
[374189637,1753242641520,-150.08442765,0.00021918,2]
[374189639,1753242641529,-463.03028645,0.00021918,2]
[374189641,1753242641539,-460.0,0.00021918,2]
[374189643,1753242641549,-460.0,0.00021918,2]
[374189645,1753242641559,-460.0,0.00021918,2]
[374189647,1753242641569,-462.73118897,0.00021918,2]
[374189649,1753242641579,-460.0,0.00021918,2]
[374189651,1753242641589,-460.0,0.00021918,2]
[374189653,1753242641598,-460.0,0.00021918,2]
[374189655,1753242641607,-460.0,0.00021918,2]
[374189657,1753242641617,-460.0,0.00021918,2]
[374189659,1753242641626,-460.0,0.00021918,2]
[374189661,1753242641635,-460.0,0.00021918,2]
[374189663,1753242641644,-460.0,0.00021918,2]
[374189664,1753242641653,-460.0,0.00021918,2]
[374189665,1753242641662,-460.0,0.00021918,2]
[374189666,1753242641671,-460.0,0.00021918,2]
[374189667,1753242641680,-555.22831236,0.00021918,2]
[374189668,1753242641689,-462.26845224,0.00021918,2]
[374189669,1753242641698,-460.0,0.00021918,2]
[374189670,1753242641708,-460.0,0.00021918,2]
[374189671,1753242641717,-460.0,0.00021918,2]
[374189672,1753242641726,-460.0,0.00021918,2]
[374189673,1753242641735,-1475.90050002,0.00021934,6]
[374189674,1753242641745,-500.0,0.00021973,2]
[374189675,1753242641754,-500.0,0.00021973,2]
[374189676,1753242641763,-200.36388747,0.00021973,2]
[374189677,1753242641772,-500.0,0.00021988,2]
[374189678,1753242641781,-1301.29853062,0.00021988,2]
[374189679,1753242641790,-1301.29853062,0.00021988,2]
[374189680,1753242641800,-1301.29853062,0.00021988,2]
[374189681,1753242641809,-1301.29853062,0.00021988,2]
[374189682,1753242641817,-1301.29853062,0.00021988,2]
[374189683,1753242641827,-1301.29853062,0.00021988,2]
[374189684,1753242641836,-500.0,0.00021988,2]
[374189685,1753242641845,-1301.29853062,0.00021988,2]
[374189686,1753242641854,-1301.29853062,0.00021988,2]
[374189687,1753242641863,-215.60648938,0.00021988,2]
[374189688,1753242641872,-500.0,0.00021988,2]
[374189689,1753242641882,-1301.29853062,0.00021988,2]
[374189690,1753242641891,-1301.29853062,0.00021988,2]
[374189691,1753242641901,-1301.29853062,0.00021988,2]
[374189693,1753242641910,-1301.29853062,0.00021988,2]
[374189695,1753242641919,-500.0,0.00021988,2]
[374189697,1753242641928,-500.0,0.00021988,2]
[374189699,1753242641938,-1301.29853062,0.00021988,2]
[374189701,1753242641947,-1301.29853062,0.00021988,2]
[374189703,1753242641956,-1301.29853062,0.00021988,2]
[374189705,1753242641965,-1301.29853062,0.00021988,2]
[374189707,1753242641974,-1301.29853062,0.00021988,2]
[374189709,1753242641984,-1301.29853062,0.00021988,2]
[374189711,1753242641993,-1301.29853062,0.00021988,2]
[374189713,1753242642002,-1301.29853062,0.00021988,2]
[374189715,1753242642012,-1301.29853062,0.00021988,2]
[374189717,1753242642022,-1301.29853062,0.00021988,2]
[374189719,1753242642031,-1450.01836269,0.00021988,2]
[374189721,1753242642041,-1450.01836269,0.00021988,2]
[374189723,1753242642051,-1450.01836269,0.00021988,2]
[374189725,1753242642062,-1450.01836269,0.00021988,2]
[374189727,1753242642071,-1450.01836269,0.00021988,2]
[374189729,1753242642081,-1450.01836269,0.00021988,2]
[374189731,1753242642090,-1450.01836269,0.00021988,2]
[374189733,1753242642099,-152.245241,0.0002199,7]
[374189735,1753242642113,-151.0,0.0002199,7]
[374189737,1753242642122,-151.0,0.0002199,7]
[374189738,1753242642132,-153.601296,0.0002199,7]
[374189740,1753242642141,-151.0,0.0002199,7]
[374189742,1753242642150,-151.0,0.0002199,7]
[374189744,1753242642161,-152.801098,0.0002199,7]
[374189746,1753242642172,-151.0,0.0002199,7]
[374189748,1753242642180,-151.0,0.0002199,7]
[374189750,1753242642190,-151.0,0.0002199,7]
[374189752,1753242642199,-151.0,0.0002199,7]
[374189754,1753242642209,-151.0,0.0002199,7]
[374189756,1753242642219,-209.820342,0.0002199,7]
[374189758,1753242642227,-151.0,0.0002199,7]
[374189760,1753242642237,-22399.71534964,0.0002199,2]
[374189762,1753242642246,-542.1,0.00022,7]
[374189764,1753242642256,-6900.91,0.00022,7]
[374189766,1753242642266,-151.0,0.00022,7]
[374189768,1753242642275,-151.0,0.00022,7]
[374189770,1753242642284,-251.32684,0.00022,7]
[374189772,1753242642294,-151.0,0.00022,7]
[374189774,1753242642303,-150.0,0.00022034,2]
[374189776,1753242642313,-160.0,0.0002206,2]
[374189778,1753242642323,-1010.05668947,0.000221,2]
[374189780,1753242642333,-1475.90050002,0.00022107,6]
[374189782,1753242642343,-151.0,0.00022142,7]
[374189784,1753242642352,-152.797318,0.00022142,7]
[374189786,1753242642361,-151.0,0.00022142,7]
[374189788,1753242642371,-151.0,0.00022142,7]
[374189790,1753242642380,-151.250628,0.00022142,7]
[374189792,1753242642390,-151.0,0.00022142,7]
[374189794,1753242642399,-151.0,0.00022142,7]
[374189796,1753242642409,-151.0,0.00022142,7]
[374189798,1753242642418,-164.049013,0.00022142,7]
[374189800,1753242642427,-151.0,0.00022142,7]
[374189802,1753242642437,-10029.3,0.00022143,5]
[374189804,1753242642446,-151.635962,0.00022143,7]
[374189807,1753242642456,-151.850532,0.00022143,7]
[374189808,1753242642465,-151.0,0.00022143,7]
[374189810,1753242642475,-151.0,0.00022143,7]
[374189812,1753242642484,-500.0,0.00022173,2]
[374189814,1753242642494,-500.0,0.0002218,2]
[374189816,1753242642503,-500.0,0.0002219,2]
[374189819,1753242642513,-500.0,0.00022191,2]
[374189820,1753242642524,-151.0,0.00022191,2]
[374189822,1753242642533,-151.0,0.00022191,2]
[374189824,1753242642542,-500.0,0.00022191,2]
[374189826,1753242642551,-471.6876449,0.00022191,2]
[374189828,1753242642561,-601.60912722,0.00022191,2]
[374189830,1753242642570,-271.37740872,0.00022191,2]
[374189833,1753242642580,-461.63009374,0.00022191,2]
[374189835,1753242642590,-555.28289674,0.00022191,2]
[374189837,1753242642599,-257.76743823,0.00022191,2]
[374189839,1753242642609,-464.04047665,0.00022191,2]
[374189841,1753242642618,-460.0,0.00022191,2]
[374189843,1753242642627,-465.58927261,0.00022191,2]
[374189845,1753242642636,-274.45201803,0.00022191,2]
[374189847,1753242642645,-460.0,0.00022191,2]
[374189848,1753242642655,-460.0,0.00022191,2]
[374189850,1753242642664,-460.0,0.00022191,2]
[374189852,1753242642673,-467.37281588,0.00022191,2]
[374189854,1753242642682,-460.0,0.00022191,2]
[374189856,1753242642691,-463.41155242,0.00022191,2]
[374189858,1753242642700,-464.55114607,0.00022191,2]
[374189860,1753242642710,-460.0,0.00022191,2]
[374189862,1753242642719,-460.0,0.00022191,2]
[374189864,1753242642729,-151.0,0.00022191,2]
[374189866,1753242642738,-460.0,0.00022191,2]
[374189868,1753242642747,-151.0,0.00022191,2]
[374189870,1753242642756,-151.0,0.00022191,2]
[374189872,1753242642767,-463.23440201,0.00022191,2]
[374189874,1753242642775,-460.0,0.00022191,2]
[374189876,1753242642784,-520.17098727,0.00022191,2]
[374189878,1753242642794,-460.0,0.00022191,2]
[374189880,1753242642803,-466.3109113,0.00022191,2]
[374189882,1753242642812,-460.0,0.00022191,2]
[374189884,1753242642821,-460.0,0.00022191,2]
[374189886,1753242642830,-465.3822339,0.00022191,2]
[374189888,1753242642839,-464.30851347,0.00022191,2]
[374189891,1753242642848,-460.0,0.00022191,2]
[374189894,1753242642858,-460.0,0.00022191,2]
[374189897,1753242642867,-460.0,0.00022191,2]
[374189899,1753242642876,-460.0,0.00022191,2]
[374189901,1753242642886,-170.866576,0.00022191,7]
[374189903,1753242642896,-151.0,0.00022191,7]
[374189907,1753242642907,-460.0,0.00022191,2]
[374189912,1753242642917,-151.0,0.00022191,7]
[374189915,1753242642927,-152.316031,0.00022191,7]
[374189918,1753242642936,-151.0,0.00022191,7]
[374189920,1753242642945,-460.0,0.00022191,2]
[374189922,1753242642954,-557.9502536,0.00022191,2]
[374189924,1753242642963,-467.87332986,0.00022191,2]
[374189925,1753242642973,-152.761675,0.00022191,7]
[374189927,1753242642982,-460.0,0.00022191,2]
[374189929,1753242642992,-460.0,0.00022191,2]
[374189931,1753242643001,-152.852934,0.00022191,7]
[374189933,1753242643010,-460.0,0.00022191,2]
[374189935,1753242643020,-460.0,0.00022191,2]
[374189937,1753242643030,-460.0,0.00022191,2]
[374189939,1753242643039,-460.0,0.00022191,2]
[374189941,1753242643048,-460.0,0.00022191,2]
[374189943,1753242643058,-151.974747,0.00022191,7]
[374189945,1753242643067,-151.0,0.00022191,7]
[374189947,1753242643077,-460.0,0.00022191,2]
[374189949,1753242643086,-460.0,0.00022191,2]
[374189951,1753242643095,-460.0,0.00022191,2]
[374189953,1753242643105,-156.72946,0.00022191,7]
[374189955,1753242643114,-460.0,0.00022191,2]
[374189957,1753242643124,-3014.841688,0.00022191,2]
[374189960,1753242643134,-151.0,0.00022191,7]
[374189962,1753242643143,-164.542039,0.00022191,7]
[374189963,1753242643152,-465.57163589,0.00022191,2]
[374189965,1753242643163,-460.0,0.00022191,2]
[374189967,1753242643172,-460.0,0.00022191,2]
[374189969,1753242643181,-460.0,0.00022191,2]
[374189971,1753242643191,-460.0,0.00022191,2]
[374189973,1753242643200,-460.0,0.00022191,2]
[374189975,1753242643210,-460.0,0.00022191,2]
[374189977,1753242643220,-460.0,0.00022191,2]
[374189979,1753242643229,-460.0,0.00022191,2]
[374189990,1753242643320,-460.0,0.00022191,2]
[374189992,1753242643330,-460.0,0.00022191,2]
[374189994,1753242643342,-153.025338,0.00022191,7]
[374189996,1753242643351,-151.0,0.00022191,7]
[374189998,1753242643361,-461.1969197,0.00022191,2]
[374190000,1753242643370,-460.0,0.00022191,2]
[374190002,1753242643380,-460.0,0.00022191,2]
[374190004,1753242643389,-460.0,0.00022191,2]
[374190006,1753242643398,-466.44639527,0.00022191,2]
[374190008,1753242643407,-152.11147,0.00022191,7]
[374190010,1753242643415,-529.09629505,0.00022191,2]
[374190012,1753242643425,-460.0,0.00022191,2]
[374190014,1753242643433,-460.0,0.00022191,2]
[374190016,1753242643443,-460.0,0.00022191,2]
[374190018,1753242643452,-483.29390257,0.00022191,2]
[374190020,1753242643461,-151.0,0.00022191,7]
[374190022,1753242643471,-460.0,0.00022191,2]
[374190023,1753242643480,-460.0,0.00022191,2]
[374190025,1753242643489,-465.01127118,0.00022191,2]
[374190027,1753242643499,-460.0,0.00022191,2]
[374190030,1753242643508,-3230.04,0.00022191,2]
[374190032,1753242643519,-460.0,0.00022191,2]
[374190034,1753242643528,-256.17110851,0.00022191,2]
[374190036,1753242643537,-151.177125,0.00022191,7]
[374190037,1753242643546,-460.0,0.00022191,2]
[374190039,1753242643556,-460.0,0.00022191,2]
[374190041,1753242643565,-151.0,0.00022191,7]
[374190044,1753242643575,-460.0,0.00022191,2]
[374190046,1753242643584,-460.0,0.00022191,2]
[374190047,1753242643593,-599.0204205,0.00022191,2]
[374190049,1753242643602,-465.97085089,0.00022191,2]
[374190051,1753242643611,-460.0,0.00022191,2]
[374190053,1753242643621,-460.0,0.00022191,2]
[374190055,1753242643630,-460.0,0.00022191,2]
[374190057,1753242643639,-468.71124717,0.00022191,2]
[374190059,1753242643648,-151.637562,0.00022191,7]
[374190061,1753242643657,-460.0,0.00022191,2]
[374190063,1753242643666,-460.0,0.00022191,2]
[374190066,1753242643675,-465.16132608,0.00022191,2]
[374190067,1753242643685,-151.0,0.00022191,7]
[374190069,1753242643694,-560.49233873,0.00022191,2]
[374190071,1753242643703,-151.0,0.00022191,7]
[374190073,1753242643712,-460.0,0.00022191,2]
[374190075,1753242643721,-460.0,0.00022191,2]
[374190077,1753242643730,-460.0,0.00022191,2]
[374190079,1753242643740,-460.0,0.00022191,2]
[374190081,1753242643750,-460.0,0.00022191,2]
[374190083,1753242643759,-460.0,0.00022191,2]
[374190085,1753242643769,-466.18785624,0.00022191,2]
[374190088,1753242643779,-460.0,0.00022191,2]
[374190089,1753242643788,-151.0,0.00022191,7]
[374190091,1753242643797,-460.0,0.00022191,2]
[374190093,1753242643807,-153.016437,0.00022191,7]
[374190096,1753242643817,-465.1315204,0.00022191,2]
[374190098,1753242643826,-464.37504844,0.00022191,2]
[374190100,1753242643836,-582.446594,0.00022191,2]
[374190102,1753242643845,-460.0,0.00022191,2]
[374190104,1753242643855,-1233.9,0.00022191,2]
[374190106,1753242643864,-460.0,0.00022191,2]
[374190108,1753242643873,-460.0,0.00022191,2]
[374190110,1753242643883,-203.70125374,0.00022191,2]
[374190111,1753242643892,-460.0,0.00022191,2]
[374190113,1753242643902,-307.67881497,0.00022191,2]
[374190115,1753242643911,-466.52895291,0.00022191,2]
[374190117,1753242643922,-460.0,0.00022191,2]
[374190119,1753242643932,-151.0,0.00022191,7]
[374190121,1753242643941,-460.0,0.00022191,2]
[374190123,1753242643951,-460.0,0.00022191,2]
[374190125,1753242643960,-460.0,0.00022191,2]
[374190127,1753242643969,-460.0,0.00022191,2]
[374190129,1753242643979,-151.0,0.00022191,7]
[374190131,1753242643988,-151.505132,0.00022191,7]
[374190134,1753242643998,-460.0,0.00022191,2]
[374190135,1753242644007,-465.63349747,0.00022191,2]
[374190137,1753242644018,-460.0,0.00022191,2]
[374190139,1753242644027,-460.0,0.00022191,2]
[374190141,1753242644036,-463.42132352,0.00022191,2]
[374190144,1753242644048,-460.0,0.00022191,2]
[374190145,1753242644057,-460.0,0.00022191,2]
[374190147,1753242644066,-460.0,0.00022191,2]
[374190149,1753242644075,-531.99802322,0.00022191,2]
[374190151,1753242644084,-462.76741128,0.00022191,2]
[374190153,1753242644094,-460.0,0.00022191,2]
[374190155,1753242644103,-465.26163024,0.00022191,2]
[374190157,1753242644112,-460.0,0.00022191,2]
[374190159,1753242644121,-460.0,0.00022191,2]
[374190161,1753242644130,-440.0,0.00022191,2]
[374190163,1753242644139,-462.90148394,0.00022191,2]
[374190165,1753242644148,-460.0,0.00022191,2]
[374190168,1753242644158,-151.0,0.00022191,7]
[374190169,1753242644170,-460.0,0.00022191,2]
[374190172,1753242644179,-460.0,0.00022191,2]
[374190174,1753242644189,-461.31632317,0.00022191,2]
[374190176,1753242644199,-1711.58,0.00022191,2]
[374190177,1753242644209,-460.0,0.00022191,2]
[374190179,1753242644219,-469.10349789,0.00022191,2]
[374190181,1753242644228,-460.0,0.00022191,2]
[374190183,1753242644240,-460.0,0.00022191,2]
[374190185,1753242644250,-460.0,0.00022191,2]
[374190187,1753242644259,-460.0,0.00022191,2]
[374190189,1753242644270,-460.0,0.00022191,2]
[374190191,1753242644279,-151.0,0.00022191,7]
[374190193,1753242644289,-460.0,0.00022191,2]
[374190195,1753242644298,-460.0,0.00022191,2]
[374190197,1753242644308,-464.94195844,0.00022191,2]
[374190199,1753242644317,-465.96138578,0.00022191,2]
[374190201,1753242644327,-460.0,0.00022191,2]
[374190203,1753242644337,-460.0,0.00022191,2]
[374190205,1753242644346,-460.0,0.00022191,2]
[374190207,1753242644355,-180.16372422,0.00022191,2]
[374190209,1753242644364,-151.0,0.00022191,7]
[374190211,1753242644374,-460.0,0.00022191,2]
[374190213,1753242644384,-463.96994027,0.00022191,2]
[374190215,1753242644393,-460.0,0.00022191,2]
[374190217,1753242644402,-503.1,0.00022191,2]
[374190219,1753242644411,-460.0,0.00022191,2]
[374190221,1753242644421,-460.0,0.00022191,2]
[374190223,1753242644430,-1578.69,0.00022191,2]
[374190225,1753242644440,-460.0,0.00022191,2]
[374190227,1753242644449,-462.03896128,0.00022191,2]
[374190229,1753242644459,-460.0,0.00022191,2]
[374190231,1753242644468,-152.376959,0.00022191,7]
[374190233,1753242644478,-460.0,0.00022191,2]
[374190235,1753242644487,-460.0,0.00022191,2]
[374190237,1753242644497,-460.0,0.00022191,2]
[374190239,1753242644507,-460.0,0.00022191,2]
[374190241,1753242644516,-460.0,0.00022191,2]
[374190243,1753242644525,-1976.78,0.00022191,2]
[374190245,1753242644535,-460.0,0.00022191,2]
[374190247,1753242644544,-2354.1,0.00022191,2]
[374190249,1753242644553,-460.0,0.00022191,2]
[374190251,1753242644563,-460.0,0.00022191,2]
[374190253,1753242644572,-154.335394,0.00022191,7]
[374190255,1753242644581,-460.0,0.00022191,2]
[374190257,1753242644591,-460.0,0.00022191,2]
[374190259,1753242644600,-460.0,0.00022191,2]
[374190261,1753242644609,-460.0,0.00022191,2]
[374190263,1753242644618,-460.0,0.00022191,2]
[374190265,1753242644627,-460.0,0.00022191,2]
[374190267,1753242644636,-460.0,0.00022191,2]
[374190269,1753242644645,-460.0,0.00022191,2]
[374190271,1753242644655,-203.707735,0.00022191,2]
[374190273,1753242644664,-460.0,0.00022191,2]
[374190275,1753242644674,-460.0,0.00022191,2]
[374190276,1753242644683,-156.28099,0.00022191,7]
[374190279,1753242644692,-463.18830394,0.00022191,2]
[374190280,1753242644702,-460.0,0.00022191,2]
[374190283,1753242644712,-463.18213726,0.00022191,2]
[374190284,1753242644721,-460.0,0.00022191,2]
[374190286,1753242644730,-463.24458565,0.00022191,2]
[374190288,1753242644739,-460.0,0.00022191,2]
[374190290,1753242644749,-460.0,0.00022191,2]
[374190292,1753242644758,-462.72798041,0.00022191,2]
[374190294,1753242644769,-460.0,0.00022191,2]
[374190297,1753242644779,-460.0,0.00022191,2]
[374190299,1753242644788,-460.0,0.00022191,2]
[374190300,1753242644797,-460.0,0.00022191,2]
[374190302,1753242644806,-464.53452496,0.00022191,2]
[374190304,1753242644816,-1588.68,0.00022191,2]
[374190306,1753242644825,-1190.5,0.00022191,2]
[374190308,1753242644834,-464.98555228,0.00022191,2]
[374190310,1753242644843,-460.0,0.00022191,2]
[374190312,1753242644852,-152.92453,0.00022191,7]
[374190314,1753242644861,-460.0,0.00022191,2]
[374190316,1753242644869,-460.0,0.00022191,2]
[374190318,1753242644879,-460.0,0.00022191,2]